bitfinex-derivatives/quotes_BTCF0:USTF0_20241021
["timestamp","ask_amount","ask_price","bid_price","bid_amount"]
[1729523955728,0.074508,67131.0,67130.0,0.074508]
[1729523956835,0.07449,67146.0,67130.0,0.61052]
[1729523957035,0.074488,67149.0,67148.0,0.074487]
[1729523957240,0.3608,67156.0,67152.0,0.074482]
[1729523957241,0.074483,67153.0,67152.0,0.074482]
[1729523958241,0.435274,67161.0,67147.0,0.3608]
[1729523958242,0.3608,67162.0,67157.0,0.074477]
[1729523958440,0.074477,67158.0,67157.0,0.074477]
[1729523958646,0.074484,67152.0,67151.0,0.074484]
[1729523958827,0.074484,67152.0,67147.0,0.37923858]
[1729523958828,0.001,67153.0,67147.0,0.54287858]
[1729523959031,0.074487,67149.0,67148.0,0.074488]
[1729523959947,0.074487,67149.0,67147.0,0.54363858]
[1729523959948,0.074488,67148.0,67147.0,0.37999858]
[1729523960240,0.001,67149.0,67147.0,0.37923858]
[1729523961142,0.001,67149.0,67148.0,0.003]
[1729523961936,0.001,67149.0,67148.0,0.074488]
[1729523962132,0.002,67149.0,67148.0,0.074488]
[1729523962640,0.001,67149.0,67148.0,0.074488]
[1729523963231,0.001,67149.0,67148.0,0.076488]
[1729523963741,0.001,67149.0,67148.0,0.193388]
[1729523964035,0.074472,67163.0,67148.0,0.195388]
[1729523964353,0.3608,67170.0,67148.0,0.193388]
[1729523964354,0.001,67149.0,67148.0,0.193388]
[1729523964653,0.001,67149.0,67148.0,0.315788]
[1729523965145,0.482,67162.0,67161.0,0.074474]
[1729523965446,0.482,67162.0,67148.0,0.316788]
[1729523965447,0.59295693,67162.0,67148.0,0.317788]
[1729523965642,0.03648499,67161.0,67158.0,0.074476]
[1729523965845,0.482,67162.0,67160.0,0.074474]
[1729523966053,0.3608,67162.0,67161.0,0.074474]
[1729523966350,0.0180641,67166.0,67154.0,0.3608]
[1729523966351,0.0180641,67166.0,67165.0,0.074469]
[1729523966534,0.2454,67167.0,67165.0,0.074469]
[1729523968441,0.2544,67167.0,67165.0,0.075469]
[1729523968640,0.27275919,67167.0,67165.0,0.075469]
[1729523968842,0.28075919,67167.0,67165.0,0.076469]
[1729523969042,0.28075919,67167.0,67165.0,0.002]
[1729523969249,0.074468,67166.0,67165.0,0.002]
[1729523970051,0.28075919,67167.0,67165.0,0.002]
[1729523970448,0.27175919,67167.0,67165.0,0.001]
[1729523970752,0.009,67166.0,67165.0,0.002]
[1729523971346,0.13865919,67167.0,67164.0,0.07447]
[1729523971555,0.008,67166.0,67165.0,0.002]
[1729523972155,0.008,67166.0,67165.0,0.001]
[1729523972456,0.083468,67166.0,67165.0,0.001]
[1729523973256,0.017,67166.0,67165.0,0.002]
[1729523973457,0.091468,67166.0,67165.0,0.002]
[1729523973662,0.12795112,67166.0,67165.0,0.002]
[1729523976458,0.05348312,67166.0,67165.0,0.002]
[1729523977465,0.12795112,67166.0,67165.0,0.002]
[1729523977970,0.05348312,67166.0,67165.0,0.076469]
[1729523978175,0.05347986,67166.0,67165.0,0.076469]
[1729523978365,0.017,67166.0,67165.0,0.076469]
[1729523978672,0.01835919,67167.0,67166.0,0.074468]
[1729523978854,0.3608,67184.0,67177.0,0.074455]
[1729523979055,0.11092338,67183.0,67166.0,0.3608]
[1729523979257,0.3608,67184.0,67177.0,0.074455]
[1729523979465,0.07445,67182.0,67177.0,0.074455]
[1729523979666,0.3608,67184.0,67169.0,0.074464]
[1729523979966,0.074449,67183.0,67177.0,0.075456]
[1729523980365,0.39252311,67184.0,67177.0,0.075456]
[1729523980566,0.074453,67180.0,67177.0,0.002]
[1729523980767,0.03647457,67179.0,67177.0,0.001]
[1729523980976,0.03647457,67178.0,67177.0,0.001]
[1729523981278,0.074454,67179.0,67177.0,0.001]
[1729523981867,0.39152311,67184.0,67173.0,0.1222]
[1729523982165,0.074453,67180.0,67177.0,0.001]
[1729523982365,0.03647411,67179.0,67177.0,0.001]
[1729523982566,0.11092911,67178.0,67177.0,0.001]
[1729523982763,0.11092911,67178.0,67177.0,0.002]
[1729523982965,0.47173072,67178.0,67177.0,0.002]
[1729523983171,0.47173072,67178.0,67173.0,0.001]
[1729523983172,0.074459,67175.0,67173.0,0.001]
[1729523983470,0.96401344,67178.0,67173.0,0.001]
[1729523983471,0.15665744,67174.0,67173.0,0.001]
[1729523984755,0.110936,67174.0,67173.0,0.001]
[1729523985568,0.111936,67174.0,67173.0,0.002]
[1729523986771,0.06923217,67174.0,67173.0,0.07646]
[1729523987384,0.14369117,67174.0,67173.0,0.07646]
[1729523987681,0.06923217,67174.0,67173.0,0.07646]
[1729523987876,0.03275517,67174.0,67173.0,0.07646]
[1729523988184,0.06923217,67174.0,67173.0,0.07646]
[1729523988675,0.03275517,67174.0,67173.0,0.07646]
[1729523989265,0.10721417,67174.0,67173.0,0.07646]
[1729523989778,0.03275517,67174.0,67173.0,0.07646]
[1729523990179,0.03275517,67174.0,67173.0,0.43726]
[1729523990479,0.015,67174.0,67173.0,0.43726]
[1729523991281,0.089459,67174.0,67173.0,0.3628]
[1729523991588,0.12093537,67174.0,67173.0,0.002]
[1729523993070,0.11193537,67174.0,67173.0,0.001]
[1729523993376,0.11193537,67174.0,67173.0,0.002]
[1729523993377,0.12093537,67174.0,67173.0,0.002]
[1729523994084,0.11893537,67174.0,67173.0,0.002]
[1729523994280,0.11793537,67174.0,67173.0,0.001]
[1729523994485,0.11893537,67174.0,67173.0,0.002]
[1729523994685,0.11193719,67174.0,67173.0,0.001]
[1729523994890,0.12193719,67174.0,67173.0,0.001]
[1729523995083,0.12293719,67174.0,67173.0,0.001]
[1729523995584,0.12293719,67174.0,67164.0,0.08528097]
[1729523995585,0.074469,67165.0,67164.0,0.08528097]
[1729523995790,0.11094673,67165.0,67164.0,0.08528097]
[1729523996590,0.03647773,67165.0,67164.0,0.08528097]
[1729523996987,0.074469,67165.0,67164.0,0.01781097]
[1729523997184,0.08220618,67165.0,67154.0,0.3608]
[1729523997381,0.3608,67166.0,67157.0,0.074478]
[1729523997382,0.07448,67158.0,67157.0,0.074478]
[1729523997983,0.07448,67158.0,67154.0,0.3608]
[1729523997984,0.07448,67155.0,67154.0,0.435281]
[1729523998375,0.3608,67166.0,67154.0,0.441281]
[1729523998681,0.074473,67164.0,67163.0,0.07447]
[1729523998886,0.11095524,67164.0,67163.0,0.07447]
[1729523999587,0.03648224,67164.0,67163.0,0.07447]
[1729523999890,0.08220789,67164.0,67161.0,0.3608]
[1729524000190,0.074464,67170.0,67169.0,0.074463]
[1729524000387,0.15666537,67170.0,67169.0,0.074463]
[1729524001684,0.15666537,67170.0,67169.0,0.075463]
[1729524001685,0.16366537,67170.0,67169.0,0.075463]
[1729524001877,0.16466537,67170.0,67169.0,0.076463]
[1729524002190,0.09020137,67170.0,67169.0,0.076463]
[1729524002385,0.008,67170.0,67169.0,0.076463]
[1729524002585,0.082464,67170.0,67169.0,0.002]
[1729524002895,0.082464,67170.0,67161.0,0.01848245]
[1729524002896,0.074472,67162.0,67161.0,0.01848245]
[1729524003080,0.074472,67162.0,67149.0,0.1212]
[1729524003081,0.435272,67162.0,67149.0,0.1212]
[1729524003288,0.03648041,67161.0,67149.0,0.1212]
[1729524003487,0.074486,67150.0,67149.0,0.195686]
[1729524003791,0.074486,67150.0,67149.0,0.1212]
[1729524003998,0.074486,67150.0,67149.0,0.195687]
[1729524004199,0.074486,67150.0,67149.0,0.1212]
[1729524004491,0.074486,67150.0,67149.0,0.203687]
[1729524004991,0.074486,67150.0,67149.0,0.195687]
[1729524005190,0.075486,67150.0,67149.0,0.214687]
[1729524005592,0.075486,67150.0,67149.0,0.206687]
[1729524005799,0.076486,67150.0,67149.0,0.206687]
[1729524006695,0.002,67150.0,67149.0,0.206687]
[1729524006896,0.001,67150.0,67149.0,0.195687]
[1729524007099,0.001,67150.0,67149.0,0.197687]
[1729524007999,0.075486,67150.0,67149.0,0.002]
[1729524008398,0.075486,67150.0,67149.0,0.076487]
[1729524008599,0.001,67150.0,67149.0,0.076487]
[1729524008897,0.075486,67150.0,67149.0,0.076487]
[1729524009603,0.075486,67150.0,67149.0,0.002]
[1729524009986,0.001,67150.0,67149.0,0.076487]
[1729524010394,0.001,67150.0,67149.0,0.068487]
[1729524010395,0.075486,67150.0,67149.0,0.068487]
[1729524012402,0.84505024,67150.0,67126.0,0.3608]
[1729524012600,0.3608,67138.0,67126.0,0.3608]
[1729524012792,0.074511,67127.0,67126.0,0.3608]
[1729524012996,0.3608,67138.0,67126.0,0.3608]
[1729524013499,0.4353,67138.0,67136.0,0.0745]
[1729524013698,0.4353,67138.0,67126.0,0.3608]
[1729524013904,0.4353,67138.0,67137.0,0.0745]
[1729524014904,0.4363,67138.0,67137.0,0.0745]
[1729524015704,0.3618,67138.0,67137.0,0.011]
[1729524015907,0.436299,67138.0,67137.0,0.011]
[1729524016404,0.436299,67138.0,67137.0,0.0935]
[1729524017111,0.436299,67138.0,67137.0,0.019]
[1729524017809,0.001,67138.0,67137.0,0.0935]
[1729524018407,0.001,67138.0,67137.0,0.2217]
[1729524019812,0.075499,67138.0,67137.0,0.2217]
[1729524020117,0.075499,67138.0,67137.0,0.019]
[1729524022417,0.001,67138.0,67137.0,0.0935]
[1729524023723,0.001,67138.0,67137.0,0.0635]
[1729524025718,0.001,67138.0,67137.0,0.0555]
[1729524027122,0.3608,67154.0,67136.0,0.3608]
[1729524027310,0.074487,67151.0,67150.0,0.074485]
[1729524027724,0.3608,67154.0,67144.0,0.251]
[1729524027931,0.11097247,67153.0,67152.0,0.074484]
[1729524028113,0.074483,67153.0,67152.0,0.074484]
[1729524029327,0.077483,67153.0,67152.0,0.074484]
[1729524030016,0.082483,67153.0,67152.0,0.074484]
[1729524031521,0.082483,67153.0,67152.0,0.09239144]
[1729524032231,0.082483,67153.0,67144.0,0.251]
[1729524032232,0.008,67153.0,67147.0,0.074488]
[1729524032432,0.074491,67147.0,67146.0,0.07449]
[1729524033024,0.074486,67150.0,67149.0,0.074486]
[1729524033422,0.008,67153.0,67144.0,0.26888391]
[1729524033718,0.008,67153.0,67149.0,0.074486]
[1729524033719,0.074487,67150.0,67149.0,0.074486]
[1729524034119,0.3608,67154.0,67147.0,0.003]
[1729524034120,0.074488,67148.0,67147.0,0.003]
[1729524034325,0.3608,67148.0,67138.0,0.00223433]
[1729524034527,0.074498,67139.0,67138.0,0.00223433]
[1729524034825,0.074491,67145.0,67144.0,0.077492]
[1729524035621,0.002,67150.0,67147.0,0.074488]
[1729524035622,0.074488,67148.0,67147.0,0.074488]
[1729524035824,0.11097819,67148.0,67147.0,0.074488]
[1729524036022,0.074488,67148.0,67147.0,0.074488]
[1729524036927,0.11097809,67148.0,67147.0,0.074488]
[1729524037125,0.11197809,67148.0,67147.0,0.074488]
[1729524037318,0.03749009,67148.0,67147.0,0.074488]
[1729524037521,0.11197809,67148.0,67147.0,0.074488]
[1729524037715,0.075488,67148.0,67147.0,0.074488]
[1729524037923,0.074488,67148.0,67147.0,0.074488]
[1729524038318,0.03649036,67148.0,67138.0,0.00223433]
[1729524038518,0.074497,67142.0,67141.0,0.074495]
[1729524040219,0.074498,67139.0,67138.0,0.01023433]
[1729524040519,0.074498,67139.0,67138.0,0.00323433]
[1729524040724,0.11099293,67139.0,67138.0,0.00323433]
[1729524040932,0.074498,67139.0,67138.0,0.00323433]
[1729524041124,0.001,67142.0,67135.0,0.074501]
[1729524041321,0.074501,67136.0,67135.0,0.074501]
[1729524042334,0.074501,67136.0,67135.0,0.075501]
[1729524043026,0.075501,67136.0,67135.0,0.083501]
[1729524043822,0.075501,67136.0,67135.0,0.082501]
[1729524044022,0.076501,67136.0,67135.0,0.082501]
[1729524044526,0.076501,67136.0,67135.0,0.082502]
[1729524045923,0.11300013,67136.0,67135.0,0.008]
[1729524046225,0.076501,67136.0,67135.0,0.082502]
[1729524048133,0.002,67136.0,67135.0,0.082502]
[1729524048434,0.076501,67136.0,67135.0,0.082502]
[1729524048923,0.002,67136.0,67135.0,0.082502]
[1729524049429,0.076501,67136.0,67135.0,0.082502]
[1729524049628,0.002,67136.0,67135.0,0.082502]
[1729524050834,0.002,67136.0,67135.0,0.211302]
[1729524054636,0.002,67136.0,67135.0,0.572102]
[1729524054829,0.002,67136.0,67135.0,0.211302]
[1729524055030,0.002,67136.0,67135.0,0.572102]
[1729524056537,0.002,67136.0,67135.0,0.564102]
[1729524060826,0.07449,67149.0,67138.0,0.074496]
[1729524061033,0.074499,67139.0,67138.0,0.074496]
[1729524062334,0.075499,67139.0,67138.0,0.081496]
[1729524063653,0.11199486,67139.0,67138.0,0.007]
[1729524063937,0.07451,67128.0,67127.0,0.3608]
[1729524064642,0.074517,67122.0,67118.0,0.16188]
[1729524064841,0.074517,67122.0,67121.0,0.07675145]
[1729524065841,0.074517,67122.0,67121.0,0.09487622]
[1729524066035,0.075517,67122.0,67121.0,0.10187622]
[1729524067034,0.076517,67122.0,67121.0,0.10187622]
[1729524068245,0.076517,67122.0,67121.0,0.09887622]
[1729524068640,0.075517,67122.0,67121.0,0.09887622]
[1729524068844,0.075517,67122.0,67121.0,0.09687622]
[1729524070128,0.075517,67122.0,67121.0,0.02235922]
[1729524070540,0.194817,67122.0,67121.0,0.02235922]
[1729524070739,0.194817,67122.0,67121.0,0.00423445]
[1729524070942,0.23132275,67122.0,67121.0,0.00423445]
[1729524071144,0.35512275,67122.0,67121.0,0.00423445]
[1729524071540,0.318617,67122.0,67121.0,0.00423445]
[1729524071744,0.35512394,67122.0,67118.0,0.01473226]
[1729524072052,0.074526,67116.0,67115.0,0.074524]
[1729524072439,0.2441,67122.0,67112.0,0.074527]
[1729524072440,0.074528,67113.0,67112.0,0.074527]
[1729524073452,0.074528,67113.0,67112.0,0.0923221]
[1729524074852,0.076528,67113.0,67112.0,0.0943221]
[1729524075842,0.002,67113.0,67112.0,0.0943221]
[1729524085953,0.074518,67121.0,67120.0,0.074519]
[1729524086353,0.074515,67127.0,67126.0,0.074511]
[1729524086562,0.074508,67131.0,67118.0,0.3608]
[1729524086563,0.07452,67120.0,67118.0,0.3608]
[1729524086857,0.074527,67116.0,67115.0,0.074524]
[1729524087046,0.074527,67116.0,67115.0,0.066524]
[1729524088949,0.075527,67116.0,67115.0,0.069524]
[1729524089155,0.076527,67116.0,67115.0,0.070524]
[1729524093850,0.002,67116.0,67115.0,0.070524]
[1729524102660,0.002,67116.0,67115.0,0.062524]
[1729524105060,0.076523,67116.0,67115.0,0.062524]
[1729524110477,0.076523,67116.0,67115.0,0.004]
[1729524110478,0.437323,67116.0,67115.0,0.004]
[1729524110868,0.47383185,67116.0,67115.0,0.004]
[1729524112361,0.437323,67116.0,67115.0,0.004]
[1729524116276,0.437323,67116.0,67104.0,0.074537]
[1729524116277,0.074539,67105.0,67104.0,0.074537]
[1729524116866,0.074539,67105.0,67104.0,0.01802134]
[1729524117071,0.3608,67109.0,67099.0,0.3608]
[1729524117279,0.074539,67104.0,67103.0,0.074537]
[1729524117869,0.074539,67104.0,67103.0,0.066537]
[1729524118580,0.075539,67104.0,67103.0,0.069537]
[1729524119286,0.076539,67104.0,67103.0,0.069537]
[1729524119674,0.076539,67104.0,67103.0,0.003]
[1729524120182,0.074557,67087.0,67086.0,0.074554]
[1729524120374,0.074538,67103.0,67085.0,0.00223611]
[1729524120375,0.074557,67086.0,67085.0,0.00223611]
[1729524120573,0.435357,67086.0,67085.0,0.00223611]
[1729524121288,0.882557,67086.0,67085.0,0.00223611]
[1729524121474,0.074569,67075.0,67074.0,0.09262738]
[1729524122082,0.074569,67075.0,67074.0,0.01805938]
[1729524122285,0.074569,67075.0,67070.0,0.435374]
[1729524122286,0.074573,67071.0,67070.0,0.3608]
[1729524122490,0.3608,67077.0,67070.0,0.018063]
[1729524122789,0.3608,67077.0,67065.0,0.3608]
[1729524122991,0.435368,67077.0,67075.0,0.074568]
[1729524123283,0.3608,67077.0,67075.0,0.074568]
[1729524123496,0.3608,67077.0,67065.0,0.3608]
[1729524123694,0.3608,67077.0,67076.0,0.074568]
[1729524124381,0.435367,67077.0,67076.0,0.074568]
[1729524124575,0.435367,67077.0,67065.0,0.3608]
[1729524124576,0.074569,67076.0,67065.0,0.3608]
[1729524125084,0.074569,67076.0,67074.0,0.074569]
[1729524125382,0.074569,67076.0,67065.0,0.3608]
[1729524125584,0.3628,67077.0,67076.0,0.074568]
[1729524125886,0.3608,67086.0,67072.0,0.3608]
[1729524126075,0.3608,67092.0,67091.0,0.074551]
[1729524126481,0.3608,67098.0,67088.0,0.3608]
[1729524126686,0.074542,67100.0,67099.0,0.074542]
[1729524127082,0.3608,67106.0,67096.0,0.074545]
[1729524127083,0.074545,67097.0,67096.0,0.074545]
[1729524128083,0.074538,67103.0,67093.0,0.074549]
[1729524128391,0.074538,67103.0,67090.0,0.074552]
[1729524128392,0.074554,67091.0,67090.0,0.074552]
[1729524128688,0.001,67097.0,67086.0,0.0008]
[1729524128689,0.074556,67087.0,67086.0,0.0008]
[1729524128876,0.074559,67085.0,67084.0,0.074559]
[1729524129993,0.075559,67085.0,67084.0,0.074559]
[1729524130691,0.001,67085.0,67084.0,0.074559]
[1729524130988,0.002,67085.0,67084.0,0.074559]
[1729524131693,0.435343,67100.0,67099.0,0.074542]
[1729524131881,0.3608,67100.0,67099.0,0.074542]
[1729524132283,0.3608,67107.0,67095.0,0.1223]
[1729524132886,0.435334,67107.0,67106.0,0.074535]
[1729524133201,0.3608,67107.0,67099.0,0.3608]
[1729524133385,0.004,67100.0,67099.0,0.3528]
[1729524133595,0.004,67100.0,67099.0,0.427342]
[1729524134091,0.3608,67100.0,67084.0,0.00223615]
[1729524134395,0.3608,67100.0,67089.0,0.3608]
[1729524134396,0.074552,67090.0,67089.0,0.3608]
[1729524134603,0.074546,67096.0,67085.0,0.02248063]
[1729524134604,0.3608,67094.0,67085.0,0.02248063]
[1729524134909,0.074557,67086.0,67085.0,0.074558]
[1729524135197,0.074558,67085.0,67084.0,0.00223615]
[1729524135392,0.074558,67085.0,67084.0,0.02457133]
[1729524135584,0.074558,67085.0,67084.0,0.00223615]
[1729524136494,0.882558,67085.0,67073.0,0.3608]
[1729524136694,0.074572,67072.0,67071.0,0.204773]
[1729524136990,0.074572,67072.0,67071.0,0.09662296]
[1729524137189,0.3608,67075.0,67065.0,0.1182]
[1729524137394,0.074578,67068.0,67067.0,0.074577]
[1729524138689,0.074572,67073.0,67072.0,0.074571]
[1729524139883,0.076572,67073.0,67072.0,0.075571]
[1729524141793,0.002,67073.0,67072.0,0.075571]
[1729524141987,0.074555,67088.0,67084.0,0.074559]
[1729524142190,0.3608,67093.0,67084.0,0.074559]
[1729524142486,0.074557,67087.0,67084.0,0.074559]
[1729524142795,0.074557,67086.0,67084.0,0.074559]
[1729524142982,0.435358,67085.0,67084.0,0.074559]
[1729524144482,0.436358,67085.0,67084.0,0.075559]
[1729524147194,0.436358,67085.0,67084.0,0.09858654]
[1729524148807,0.436358,67085.0,67084.0,0.09058654]
[1729524150689,0.09696589,67105.0,67098.0,0.074543]
[1729524150897,0.074538,67103.0,67102.0,0.074537]
[1729524152199,0.007,67105.0,67104.0,0.074537]
[1729524153496,0.090536,67105.0,67104.0,0.074537]
[1729524153702,0.083536,67105.0,67104.0,0.074537]
[1729524154598,0.088536,67105.0,67104.0,0.074537]
[1729524164105,0.088536,67105.0,67104.0,0.066537]
[1729524164712,0.014,67105.0,67104.0,0.066537]
[1729524165320,0.088536,67105.0,67104.0,0.066537]
[1729524167006,0.088536,67105.0,67103.0,0.1245]
[1729524167007,0.074537,67104.0,67103.0,0.1245]
[1729524167205,0.074537,67104.0,67103.0,0.199038]
[1729524168314,0.087537,67104.0,67103.0,0.199038]
[1729524168810,0.087537,67104.0,67098.0,0.00088]
[1729524169006,0.087537,67104.0,67092.0,0.3608]
[1729524169007,0.074549,67093.0,67092.0,0.3608]
[1729524169409,0.074542,67100.0,67092.0,0.3608]
[1729524169712,0.074538,67103.0,67098.0,0.3608]
[1729524169913,0.074538,67103.0,67093.0,0.1176]
[1729524169914,0.074542,67100.0,67093.0,0.28490219]
[1729524170111,0.013,67104.0,67093.0,0.28490219]
[1729524170309,0.087537,67104.0,67103.0,0.074538]
[1729524170514,0.074541,67101.0,67100.0,0.074541]
[1729524170918,0.013,67104.0,67102.0,0.074538]
[1729524171606,0.004,67104.0,67102.0,0.074538]
[1729524171915,0.09650809,67112.0,67102.0,0.074538]
[1729524172309,0.008,67104.0,67102.0,0.074538]
[1729524172504,0.074538,67103.0,67102.0,0.074538]
[1729524174616,0.074538,67103.0,67098.0,0.3608]
[1729524174617,0.003,67103.0,67098.0,0.3608]
[1729524174817,0.003,67103.0,67099.0,0.074541]
[1729524174818,0.074542,67100.0,67099.0,0.074541]
[1729524175319,0.074547,67095.0,67094.0,0.074548]
[1729524175514,0.3608,67100.0,67099.0,0.074542]
[1729524175515,0.074541,67100.0,67099.0,0.074542]
[1729524176017,0.079541,67100.0,67099.0,0.074542]
[1729524176413,0.074541,67100.0,67099.0,0.074542]
[1729524178622,0.079541,67100.0,67099.0,0.074542]
[1729524178922,0.074545,67097.0,67095.0,0.074546]
[1729524179213,0.005,67100.0,67095.0,0.074546]
[1729524179214,0.074546,67096.0,67095.0,0.074546]
[1729524179404,0.074546,67096.0,67095.0,0.066546]
[1729524179923,0.074547,67095.0,67094.0,0.13742044]
[1729524180217,0.074547,67095.0,67094.0,0.02202044]
[1729524180417,0.07455,67092.0,67091.0,0.3608]
[1729524181705,0.07455,67092.0,67091.0,0.3628]
[1729524181905,0.07455,67092.0,67091.0,0.002]
[1729524181906,0.47186975,67092.0,67091.0,0.002]
[1729524182318,0.47186975,67092.0,67083.0,0.3608]
[1729524182319,0.074553,67089.0,67083.0,0.3608]
[1729524182621,0.074553,67089.0,67084.0,0.02250109]
[1729524182622,0.15685209,67089.0,67084.0,0.02250109]
[1729524183128,0.55823275,67089.0,67062.0,0.04458023]
[1729524183333,0.074579,67068.0,67067.0,0.074577]
[1729524183910,0.07458,67065.0,67064.0,0.1248]
[1729524184216,0.074581,67064.0,67063.0,0.02278859]
[1729524184406,0.074585,67061.0,67060.0,0.074586]
[1729524185023,0.074572,67072.0,67057.0,0.1248]
[1729524185024,0.074588,67058.0,67057.0,0.1248]
[1729524186314,0.074588,67058.0,67057.0,0.199389]
[1729524187418,0.002,67058.0,67057.0,0.209389]
[1729524187824,0.076588,67058.0,67057.0,0.209389]
[1729524188011,0.437388,67058.0,67057.0,0.01]
[1729524188920,0.436388,67058.0,67057.0,0.008]
[1729524189119,0.437388,67058.0,67057.0,0.01]
[1729524190216,0.798188,67058.0,67057.0,0.01]
[1729524190420,0.798188,67058.0,67057.0,0.009]
[1729524190622,1.245548,67058.0,67057.0,0.009]
[1729524191429,0.076588,67058.0,67057.0,0.009]
[1729524192321,0.002,67058.0,67057.0,0.083589]
[1729524194735,0.002,67058.0,67057.0,0.10593552]
[1729524195031,0.002,67058.0,67057.0,0.09793552]
[1729524195438,0.076588,67058.0,67057.0,0.001]
[1729524197935,0.45968057,67058.0,67057.0,0.001]
[1729524198144,0.90704057,67058.0,67057.0,0.001]
[1729524200235,0.074601,67046.0,67045.0,0.02290144]
[1729524200436,0.074593,67054.0,67043.0,0.00223726]
[1729524200437,0.3608,67049.0,67043.0,0.00223726]
[1729524200643,0.074603,67044.0,67043.0,0.00223726]
[1729524202056,0.075603,67044.0,67043.0,0.00323726]
[1729524202258,0.075603,67044.0,67043.0,0.001]
[1729524203549,0.076603,67044.0,67043.0,0.001]
[1729524203855,0.074608,67040.0,67039.0,0.074609]
[1729524205053,0.075608,67040.0,67039.0,0.075609]
[1729524206258,0.076608,67040.0,67039.0,0.076609]
[1729524209268,0.076608,67040.0,67039.0,0.002]
[1729524209650,0.076608,67040.0,67039.0,0.076609]
[1729524210368,0.076608,67040.0,67039.0,0.068609]
[1729524211764,0.002,67040.0,67039.0,0.068609]
[1729524214269,0.076608,67040.0,67039.0,0.068609]
[1729524214458,0.002,67040.0,67039.0,0.068609]
[1729524214655,0.593,67057.0,67038.0,0.00734004]
[1729524214863,0.074596,67052.0,67051.0,0.074594]
[1729524215166,0.3608,67057.0,67048.0,0.074598]
[1729524215167,0.074598,67049.0,67048.0,0.074598]
[1729524215672,0.074598,67050.0,67048.0,0.074598]
[1729524215973,0.3608,67057.0,67046.0,0.3639]
[1729524215974,0.3618,67057.0,67046.0,0.3639]
[1729524216373,0.074594,67053.0,67052.0,0.074595]
[1729524216568,0.07459,67056.0,67055.0,0.07459]
[1729524218168,0.3608,67057.0,67056.0,0.07459]
[1729524218169,0.074591,67057.0,67056.0,0.07459]
[1729524219169,0.074593,67054.0,67053.0,0.074592]
[1729524219373,0.074593,67054.0,67053.0,0.233192]
[1729524221573,0.074593,67054.0,67053.0,0.074592]
[1729524221966,0.075593,67054.0,67053.0,0.075592]
[1729524222168,0.075593,67054.0,67053.0,0.076592]
[1729524225771,0.075593,67054.0,67053.0,0.068592]
[1729524230669,0.001,67054.0,67053.0,0.068592]
[1729524230985,0.074562,67082.0,67066.0,0.074579]
[1729524230986,0.3608,67073.0,67066.0,0.074579]
[1729524231164,0.3608,67073.0,67072.0,0.074572]
[1729524232281,0.3638,67073.0,67072.0,0.074572]
[1729524232483,0.3648,67073.0,67072.0,0.074572]
[1729524232665,0.004,67073.0,67072.0,0.074572]
[1729524233268,0.355,67090.0,67072.0,0.45459392]
[1729524233477,0.074562,67082.0,67081.0,0.074561]
[1729524234583,0.02203737,67088.0,67076.0,0.074568]
[1729524234584,0.074569,67077.0,67076.0,0.074568]
[1729524236080,0.076569,67077.0,67076.0,0.074568]
[1729524236270,0.076569,67077.0,67076.0,0.076568]
[1729524238880,0.076569,67077.0,67076.0,0.002]
[1729524239576,0.437369,67077.0,67076.0,0.002]
[1729524240485,0.07458,67066.0,67056.0,0.00223661]
[1729524240790,0.074589,67057.0,67056.0,0.09881204]
[1729524241177,0.074589,67057.0,67056.0,0.09081204]
[1729524241688,0.074589,67057.0,67056.0,0.08359]
[1729524241882,0.074589,67057.0,67056.0,0.08559]
[1729524242394,0.001,67057.0,67056.0,0.002]
[1729524242580,0.3608,67081.0,67056.0,0.1333]
[1729524242783,0.16213627,67075.0,67060.0,0.3608]
[1729524242983,0.074572,67073.0,67072.0,0.074571]
[1729524243386,0.074575,67071.0,67070.0,0.074574]
[1729524244387,0.435362,67081.0,67061.0,0.1164]
[1729524244583,0.074571,67074.0,67073.0,0.074569]
[1729524245683,0.079571,67074.0,67073.0,0.074569]
[1729524246083,0.079571,67074.0,67073.0,0.077569]
[1729524246282,0.005,67074.0,67073.0,0.077569]
[1729524246789,0.07957,67074.0,67073.0,0.077569]
[1729524247188,0.07457,67074.0,67073.0,0.077569]
[1729524247384,0.07557,67074.0,67073.0,0.074569]
[1729524247592,0.07557,67074.0,67073.0,0.075569]
[1729524247790,0.07457,67074.0,67073.0,0.075569]
[1729524248187,0.07457,67074.0,67073.0,0.074569]
[1729524248388,0.07457,67074.0,67073.0,0.077569]
[1729524250492,0.07457,67074.0,67073.0,0.02558503]
[1729524250697,0.07457,67074.0,67073.0,0.10015603]
[1729524251284,0.07457,67074.0,67073.0,0.02558503]
[1729524251490,0.07757,67074.0,67073.0,0.02558503]
[1729524251691,0.07757,67074.0,67073.0,0.09715603]
[1729524251887,0.07757,67074.0,67073.0,0.074571]
[1729524252087,0.003,67074.0,67067.0,0.15784]
[1729524252289,0.003,67074.0,67067.0,0.02192208]
[1729524252497,0.074577,67069.0,67068.0,0.074577]
[1729524253597,0.003,67074.0,67066.0,0.54234944]
[1729524253792,0.074573,67072.0,67071.0,0.074572]
[1729524254898,0.075573,67072.0,67071.0,0.074572]
[1729524255094,0.075573,67072.0,67071.0,0.076572]
[1729524255989,0.075573,67072.0,67071.0,0.002]
[1729524256694,0.074585,67061.0,67060.0,0.00076]
[1729524256901,0.074585,67061.0,67056.0,0.14455516]